[Event "Early-Titled-Tuesday-Blitz-February-13-2024"]
[Site "Chess.com"]
[Date "2024.02.13"]
[Round "11"]
[White "TitarovVasiliYouTube"]
[Black "Fjal"]
[Result "1-0"]
[WhiteElo "2523"]
[BlackElo "2328"]
[TimeControl "180+1"]
[EndTime "10:09:07 PST"]
[Termination "TitarovVasiliYouTube won by resignation"]

1. Nf3 {[%clk 0:02:58.6]} 1... Nf6 {[%clk 0:02:59.6]} 2. g3 {[%clk 0:02:59.5]}
2... g6 {[%clk 0:03:00.2]} 3. Bg2 {[%clk 0:03:00.4]} 3... Bg7 {[%clk 0:03:01]}
4. O-O {[%clk 0:03:01.3]} 4... O-O {[%clk 0:03:01.6]} 5. c4 {[%clk 0:03:02]}
5... c5 {[%clk 0:03:01.5]} 6. Nc3 {[%clk 0:03:02.5]} 6... Nc6 {[%clk 0:03:02.1]}
7. d3 {[%clk 0:03:02.7]} 7... d6 {[%clk 0:03:02]} 8. Rb1 {[%clk 0:03:00.6]} 8...
Rb8 {[%clk 0:03:02]} 9. a3 {[%clk 0:03:00.6]} 9... a6 {[%clk 0:03:02.1]} 10. b4
{[%clk 0:03:01]} 10... cxb4 {[%clk 0:03:02.4]} 11. axb4 {[%clk 0:03:01.9]} 11...
b5 {[%clk 0:03:03.2]} 12. cxb5 {[%clk 0:03:01.9]} 12... axb5 {[%clk 0:03:04.1]}
13. Be3 {[%clk 0:03:01.1]} 13... Ng4 {[%clk 0:02:52.9]} 14. Bd2 {[%clk 0:03:01]}
14... Bd7 {[%clk 0:02:33.2]} 15. Qb3 {[%clk 0:02:46.5]} 15... Be6 {[%clk
0:02:26.1]} 16. Qd1 {[%clk 0:02:39.9]} 16... h6 {[%clk 0:02:18.6]} 17. h3 {[%clk
0:02:35.2]} 17... Nge5 {[%clk 0:02:19]} 18. Nxe5 {[%clk 0:02:33.5]} 18... Nxe5
{[%clk 0:02:19.9]} 19. Nd5 {[%clk 0:02:32]} 19... Qd7 {[%clk 0:02:14.4]} 20. Kh2
{[%clk 0:02:26.4]} 20... Rfc8 {[%clk 0:02:11.3]} 21. Be3 {[%clk 0:02:16.9]}
21... h5 {[%clk 0:02:01.3]} 22. Nb6 {[%clk 0:02:14.6]} 22... Rxb6 {[%clk
0:02:00.5]} 23. Bxb6 {[%clk 0:02:15.5]} 23... h4 {[%clk 0:01:52.3]} 24. Rc1
{[%clk 0:02:09.6]} 24... Rb8 {[%clk 0:01:47]} 25. Be3 {[%clk 0:01:56.2]} 25...
f5 {[%clk 0:01:18]} 26. Qd2 {[%clk 0:01:50.6]} 26... Nf7 {[%clk 0:01:17.3]} 27.
Rc6 {[%clk 0:01:39.8]} 27... d5 {[%clk 0:01:11.5]} 28. Rfc1 {[%clk 0:01:31.8]}
28... d4 {[%clk 0:01:09.7]} 29. Bf4 {[%clk 0:01:30.7]} 29... Re8 {[%clk
0:01:05.3]} 30. Rc7 {[%clk 0:01:28.8]} 30... Qd8 {[%clk 0:01:05.6]} 31. Rb7
{[%clk 0:01:26.6]} 31... Bd5 {[%clk 0:01:05.2]} 32. Rb8 {[%clk 0:01:25.4]} 32...
Qxb8 {[%clk 0:00:26.2]} 33. Bxb8 {[%clk 0:01:26.3]} 33... Bxg2 {[%clk
0:00:26.6]} 34. Kxg2 {[%clk 0:01:25]} 34... Rxb8 {[%clk 0:00:27.3]} 35. Qf4
{[%clk 0:01:21.2]} 35... e5 {[%clk 0:00:23.7]} 36. Qxh4 {[%clk 0:01:18.5]} 36...
Re8 {[%clk 0:00:23.9]} 37. Rc7 {[%clk 0:01:17.8]} 37... g5 {[%clk 0:00:24.1]}
38. Qh5 {[%clk 0:01:17.9]} 38... Rf8 {[%clk 0:00:22.2]} 39. Qg6 {[%clk 0:01:17]}
39... f4 {[%clk 0:00:18.1]} 40. Qe6 {[%clk 0:01:15.1]} 40... fxg3 {[%clk
0:00:16.5]} 41. fxg3 {[%clk 0:01:16]} 41... Bh8 {[%clk 0:00:15.6]} 42. Rc8
{[%clk 0:01:15.7]} 42... Rxc8 {[%clk 0:00:14.6]} 43. Qxc8+ {[%clk 0:01:16.6]}
43... Kh7 {[%clk 0:00:14.9]} 44. Qf5+ {[%clk 0:01:16.2]} 44... Kg8 {[%clk
0:00:14.7]} 45. Qg6+ {[%clk 0:01:16.2]} 45... Kf8 {[%clk 0:00:14.3]} 46. Qc6
{[%clk 0:01:17.1]} 46... Bf6 {[%clk 0:00:13.8]} 47. Qxf6 {[%clk 0:01:16.8]} 1-0

[Event "Early-Titled-Tuesday-Blitz-February-13-2024"]
[Site "Chess.com"]
[Date "2024.02.13"]
[Round "11"]
[White "Kirill_Klukin"]
[Black "Vaibhavraut99"]
[Result "1-0"]
[WhiteElo "2822"]
[BlackElo "2684"]
[TimeControl "180+1"]
[EndTime "10:09:09 PST"]
[Termination "Kirill_Klukin won by resignation"]

1. d4 {[%clk 0:03:00.9]} 1... Nf6 {[%clk 0:02:51.6]} 2. Nf3 {[%clk 0:03:01.4]}
2... e6 {[%clk 0:02:51.7]} 3. e3 {[%clk 0:03:01.9]} 3... b6 {[%clk 0:02:51.6]}
4. Bd3 {[%clk 0:03:02.7]} 4... Bb7 {[%clk 0:02:51.8]} 5. O-O {[%clk 0:03:03.5]}
5... Be7 {[%clk 0:02:50.7]} 6. c4 {[%clk 0:03:04.1]} 6... O-O {[%clk 0:02:50.7]}
7. Nc3 {[%clk 0:03:04.8]} 7... Bb4 {[%clk 0:02:51.3]} 8. Qc2 {[%clk 0:02:59.4]}
8... Bxc3 {[%clk 0:02:38.7]} 9. bxc3 {[%clk 0:03:00.3]} 9... d6 {[%clk
0:02:38.2]} 10. e4 {[%clk 0:02:59.1]} 10... Nfd7 {[%clk 0:02:19.9]} 11. Be3
{[%clk 0:02:53.4]} 11... e5 {[%clk 0:02:17.4]} 12. Nd2 {[%clk 0:02:53.5]} 12...
Nc6 {[%clk 0:02:11.7]} 13. a3 {[%clk 0:02:45.5]} 13... Nf6 {[%clk 0:02:07.7]}
14. f4 {[%clk 0:02:44]} 14... Ng4 {[%clk 0:02:04.5]} 15. Rae1 {[%clk 0:02:34.3]}
15... Nxe3 {[%clk 0:02:02.3]} 16. Rxe3 {[%clk 0:02:35.2]} 16... exd4 {[%clk
0:02:03]} 17. Rg3 {[%clk 0:02:34.9]} 17... Qf6 {[%clk 0:01:53.8]} 18. e5 {[%clk
0:02:34.7]} 18... dxe5 {[%clk 0:01:13.8]} 19. Bxh7+ {[%clk 0:02:34.5]} 19... Kh8
{[%clk 0:01:14.5]} 20. Rh3 {[%clk 0:02:26.3]} 20... g6 {[%clk 0:00:36.9]} 21.
Bxg6+ {[%clk 0:02:25.3]} 21... Kg7 {[%clk 0:00:31.5]} 22. Ne4 {[%clk 0:02:06.6]}
22... Qxg6 {[%clk 0:00:25.1]} 23. f5 {[%clk 0:01:57]} 23... Qg4 {[%clk
0:00:14.7]} 24. Rg3 {[%clk 0:01:54]} 24... Qxg3 {[%clk 0:00:12.9]} 25. f6+
{[%clk 0:01:53.9]} 25... Kh8 {[%clk 0:00:10.7]} 26. Nxg3 {[%clk 0:01:53.2]}
26... Rg8 {[%clk 0:00:10.8]} 27. Qf5 {[%clk 0:01:52.6]} 27... Rg6 {[%clk
0:00:10.5]} 28. Qh5+ {[%clk 0:01:49.9]} 28... Kg8 {[%clk 0:00:10.6]} 29. Nf5
{[%clk 0:01:50.4]} 29... d3 {[%clk 0:00:08.8]} 30. Nh6+ {[%clk 0:01:46.6]} 30...
Kf8 {[%clk 0:00:08]} 31. Nxf7 {[%clk 0:01:47.3]} 31... Rxg2+ {[%clk 0:00:05.3]}
32. Kxg2 {[%clk 0:01:47.6]} 32... Nd8+ {[%clk 0:00:05.9]} 33. Kf2 {[%clk
0:01:45.3]} 33... Nxf7 {[%clk 0:00:06.3]} 34. Ke3 {[%clk 0:01:43.1]} 34... Rd8
{[%clk 0:00:06.2]} 35. Kd2 {[%clk 0:01:36.5]} 35... e4 {[%clk 0:00:05.3]} 36.
Qg6 {[%clk 0:01:25.6]} 36... e3+ {[%clk 0:00:04.7]} 37. Kxe3 {[%clk 0:01:26.1]}
37... Re8+ {[%clk 0:00:05.3]} 38. Kd2 {[%clk 0:01:23.3]} 38... Re2+ {[%clk
0:00:05.1]} 39. Kd1 {[%clk 0:01:22.9]} 39... Be4 {[%clk 0:00:01.4]} 40. Qg7+
{[%clk 0:01:22.8]} 40... Ke8 {[%clk 0:00:02]} 41. Qg8+ {[%clk 0:01:23.3]} 41...
Kd7 {[%clk 0:00:02.8]} 42. Qxf7+ {[%clk 0:01:23.8]} 42... Kc6 {[%clk 0:00:03.7]}
43. Qe6+ {[%clk 0:01:23.7]} 43... Kb7 {[%clk 0:00:03.1]} 44. Qxe4+ {[%clk
0:01:24.2]} 44... Rxe4 {[%clk 0:00:03.9]} 45. f7 {[%clk 0:01:25.1]} 1-0

[Event "Early-Titled-Tuesday-Blitz-February-13-2024"]
[Site "Chess.com"]
[Date "2024.02.13"]
[Round "11"]
[White "Inepton_Fermion"]
[Black "HanSchut"]
[Result "1-0"]
[WhiteElo "2393"]
[BlackElo "2256"]
[TimeControl "180+1"]
[EndTime "10:09:09 PST"]
[Termination "Inepton_Fermion won by resignation"]

1. Nf3 {[%clk 0:03:00.9]} 1... Nf6 {[%clk 0:02:59]} 2. b3 {[%clk 0:03:01.2]}
2... g6 {[%clk 0:02:58.6]} 3. Bb2 {[%clk 0:03:01.5]} 3... Bg7 {[%clk 0:02:59.3]}
4. g3 {[%clk 0:03:02]} 4... O-O {[%clk 0:02:59.7]} 5. Bg2 {[%clk 0:03:02.6]}
5... d5 {[%clk 0:03:00.2]} 6. O-O {[%clk 0:03:03.1]} 6... c5 {[%clk 0:03:00.2]}
7. d3 {[%clk 0:02:59.9]} 7... Nc6 {[%clk 0:02:57.8]} 8. Nbd2 {[%clk 0:02:57.9]}
8... h6 {[%clk 0:02:50.7]} 9. e4 {[%clk 0:02:56.9]} 9... Be6 {[%clk 0:02:50.2]}
10. Re1 {[%clk 0:02:54.4]} 10... Qd7 {[%clk 0:02:44.3]} 11. e5 {[%clk
0:02:33.5]} 11... Ne8 {[%clk 0:02:37.3]} 12. c4 {[%clk 0:02:30.4]} 12... Nc7
{[%clk 0:02:35.7]} 13. Qe2 {[%clk 0:02:25.7]} 13... Rad8 {[%clk 0:02:33.2]} 14.
Rad1 {[%clk 0:02:23.6]} 14... Nb4 {[%clk 0:02:23.8]} 15. a3 {[%clk 0:02:16.9]}
15... Nc2 {[%clk 0:02:14.2]} 16. Rf1 {[%clk 0:02:16.9]} 16... dxc4 {[%clk
0:02:10.7]} 17. dxc4 {[%clk 0:02:15.9]} 17... b5 {[%clk 0:01:28]} 18. Ne4 {[%clk
0:02:11.8]} 18... Nd4 {[%clk 0:01:28]} 19. Nxd4 {[%clk 0:02:07.9]} 19... cxd4
{[%clk 0:01:28.9]} 20. Nc5 {[%clk 0:02:03.1]} 20... Qc8 {[%clk 0:01:23.8]} 21.
cxb5 {[%clk 0:01:53.1]} 21... Bd5 {[%clk 0:01:12]} 22. Bxd4 {[%clk 0:01:45.7]}
22... Bxg2 {[%clk 0:01:11.3]} 23. Kxg2 {[%clk 0:01:46.6]} 23... Ne6 {[%clk
0:00:58.7]} 24. Nxe6 {[%clk 0:01:44.1]} 24... Qxe6 {[%clk 0:00:59.6]} 25. Bxa7
{[%clk 0:01:40.2]} 25... Qxb3 {[%clk 0:00:52.9]} 26. Bc5 {[%clk 0:01:28.8]}
26... Rxd1 {[%clk 0:00:44.7]} 27. Rxd1 {[%clk 0:01:29.7]} 27... Bxe5 {[%clk
0:00:32.5]} 28. Rd7 {[%clk 0:01:08.3]} 28... Bf6 {[%clk 0:00:24.6]} 29. Qd3
{[%clk 0:01:01.2]} 29... Qxd3 {[%clk 0:00:10.8]} 30. Rxd3 {[%clk 0:01:02.1]}
30... Rc8 {[%clk 0:00:09.9]} 31. Be3 {[%clk 0:00:55.1]} 31... e5 {[%clk
0:00:09.9]} 32. b6 {[%clk 0:00:52.6]} 32... e4 {[%clk 0:00:10.3]} 33. b7 {[%clk
0:00:45.3]} 33... Rb8 {[%clk 0:00:10.1]} 34. Rb3 {[%clk 0:00:45.7]} 34... Be5
{[%clk 0:00:07.8]} 35. Ba7 {[%clk 0:00:45]} 1-0

[Event "Early-Titled-Tuesday-Blitz-February-13-2024"]
[Site "Chess.com"]
[Date "2024.02.13"]
[Round "11"]
[White "ChessBliss09"]
[Black "bylavochka"]
[Result "1-0"]
[WhiteElo "2153"]
[BlackElo "2292"]
[TimeControl "180+1"]
[EndTime "10:09:11 PST"]
[Termination "ChessBliss09 won on time"]

1. c4 {[%clk 0:03:00.9]} 1... Nf6 {[%clk 0:02:55.4]} 2. Nc3 {[%clk 0:03:00.7]}
2... e6 {[%clk 0:02:55.9]} 3. e4 {[%clk 0:03:00]} 3... Be7 {[%clk 0:02:56.8]} 4.
e5 {[%clk 0:02:58.4]} 4... Ng8 {[%clk 0:02:54.9]} 5. d4 {[%clk 0:02:56.9]} 5...
d6 {[%clk 0:02:52.8]} 6. f4 {[%clk 0:02:52.1]} 6... Nh6 {[%clk 0:02:42.7]} 7.
Nf3 {[%clk 0:02:51.7]} 7... Nf5 {[%clk 0:02:14.8]} 8. Bd3 {[%clk 0:02:49.1]}
8... dxe5 {[%clk 0:01:44.7]} 9. Bxf5 {[%clk 0:02:35.3]} 9... exf5 {[%clk
0:01:42.5]} 10. fxe5 {[%clk 0:02:35.1]} 10... O-O {[%clk 0:01:38.9]} 11. O-O
{[%clk 0:02:33.8]} 11... Nc6 {[%clk 0:01:37.8]} 12. d5 {[%clk 0:02:30.3]} 12...
Nb8 {[%clk 0:01:17.6]} 13. Kh1 {[%clk 0:02:25.6]} 13... Re8 {[%clk 0:01:11]} 14.
Nd4 {[%clk 0:02:24.8]} 14... g6 {[%clk 0:01:11]} 15. Bf4 {[%clk 0:02:12.7]}
15... Bg5 {[%clk 0:01:06.5]} 16. Qf3 {[%clk 0:02:03.6]} 16... a6 {[%clk
0:00:20.4]} 17. a4 {[%clk 0:01:57.9]} 17... Nd7 {[%clk 0:00:16.5]} 18. e6 {[%clk
0:01:53]} 18... Nc5 {[%clk 0:00:10.9]} 19. b4 {[%clk 0:01:46.3]} 19... Bf6
{[%clk 0:00:10.4]} 20. Nxf5 {[%clk 0:01:26.2]} 20... gxf5 {[%clk 0:00:04.7]} 21.
exf7+ {[%clk 0:01:23.1]} 21... Kxf7 {[%clk 0:00:04.4]} 22. bxc5 {[%clk
0:01:23.2]} 22... Bxc3 {[%clk 0:00:04.8]} 23. Qxc3 {[%clk 0:01:22.5]} 23... Qf6
{[%clk 0:00:04.4]} 24. Qh3 {[%clk 0:01:19.8]} 24... Qg6 {[%clk 0:00:02.7]} 25.
Bxc7 {[%clk 0:01:14.9]} 25... Re2 {[%clk 0:00:03.1]} 26. Rae1 {[%clk 0:01:08.6]}
26... f4 {[%clk 0:00:03.2]} 27. Qf3 {[%clk 0:00:42.3]} 27... Rxe1 {[%clk
0:00:02.8]} 28. Qxf4+ {[%clk 0:00:42.2]} 28... Ke8 {[%clk 0:00:02.7]} 29. Rxe1+
{[%clk 0:00:37.7]} 1-0

[Event "Early-Titled-Tuesday-Blitz-February-13-2024"]
[Site "Chess.com"]
[Date "2024.02.13"]
[Round "11"]
[White "Ready4abattle"]
[Black "RamonManon0g"]
[Result "0-1"]
[WhiteElo "2250"]
[BlackElo "2371"]
[TimeControl "180+1"]
[EndTime "10:09:11 PST"]
[Termination "RamonManon0g won by resignation"]

1. e4 {[%clk 0:03:00.9]} 1... c5 {[%clk 0:02:59.5]} 2. Nf3 {[%clk 0:03:00.8]}
2... d6 {[%clk 0:02:58.9]} 3. d4 {[%clk 0:03:00.7]} 3... cxd4 {[%clk 0:02:59.8]}
4. Nxd4 {[%clk 0:03:00.2]} 4... Nf6 {[%clk 0:03:00.1]} 5. Nc3 {[%clk 0:03:00.5]}
5... a6 {[%clk 0:03:00]} 6. h3 {[%clk 0:03:00.8]} 6... e5 {[%clk 0:03:00.1]} 7.
Nde2 {[%clk 0:03:01]} 7... h5 {[%clk 0:03:00.2]} 8. Bg5 {[%clk 0:02:58.1]} 8...
Be7 {[%clk 0:03:00.1]} 9. Qd3 {[%clk 0:02:50.3]} 9... Be6 {[%clk 0:02:58.6]} 10.
O-O-O {[%clk 0:02:45.9]} 10... Nbd7 {[%clk 0:02:58.6]} 11. f4 {[%clk 0:02:41.8]}
11... Qc7 {[%clk 0:02:49.3]} 12. Kb1 {[%clk 0:02:36.4]} 12... O-O {[%clk
0:02:45.7]} 13. f5 {[%clk 0:02:30.4]} 13... Bc4 {[%clk 0:02:45.1]} 14. Qf3
{[%clk 0:02:28.9]} 14... b5 {[%clk 0:02:30.7]} 15. Be3 {[%clk 0:01:44]} 15... b4
{[%clk 0:02:26.3]} 16. Nd5 {[%clk 0:01:43]} 16... Nxd5 {[%clk 0:02:26]} 17. exd5
{[%clk 0:01:43.9]} 17... Nf6 {[%clk 0:02:23.6]} 18. Ng3 {[%clk 0:01:32.5]} 18...
Rac8 {[%clk 0:02:13.4]} 19. Bxc4 {[%clk 0:01:11.4]} 19... Qxc4 {[%clk
0:02:14.3]} 20. Qe2 {[%clk 0:01:11.1]} 20... h4 {[%clk 0:02:05]} 21. Qxc4 {[%clk
0:01:10.1]} 21... Rxc4 {[%clk 0:02:05.9]} 22. Nf1 {[%clk 0:01:05.5]} 22... Rfc8
{[%clk 0:02:03.9]} 23. Rd2 {[%clk 0:01:03.7]} 23... Ne4 {[%clk 0:01:54.8]} 24.
Re2 {[%clk 0:01:01.4]} 24... Rb8 {[%clk 0:01:41.6]} 25. Bc1 {[%clk 0:00:54.4]}
25... Nc3+ {[%clk 0:01:31.6]} 26. bxc3 {[%clk 0:00:54.8]} 26... bxc3+ {[%clk
0:01:32.5]} 27. Ka1 {[%clk 0:00:47.8]} 27... Rcb4 {[%clk 0:01:32.5]} 28. Nd2
{[%clk 0:00:48.1]} 28... cxd2 {[%clk 0:01:14.4]} 29. Bxd2 {[%clk 0:00:49]} 29...
Rd4 {[%clk 0:01:14.4]} 30. Be3 {[%clk 0:00:39.9]} 30... Rxd5 {[%clk 0:01:13.7]}
31. Rb1 {[%clk 0:00:37.1]} 31... Rc8 {[%clk 0:01:10.5]} 32. Rb7 {[%clk
0:00:34.5]} 32... Bf6 {[%clk 0:01:09.7]} 33. Kb2 {[%clk 0:00:31.5]} 33... e4+
{[%clk 0:01:08]} 34. Kb3 {[%clk 0:00:32.2]} 34... Rc3+ {[%clk 0:01:06.9]} 35.
Kb4 {[%clk 0:00:31.5]} 35... Rd1 {[%clk 0:00:42.7]} 36. Rb8+ {[%clk 0:00:23.4]}
36... Kh7 {[%clk 0:00:42.4]} 37. Ka4 {[%clk 0:00:24.3]} 37... Ra1 {[%clk
0:00:37.4]} 38. Rb2 {[%clk 0:00:18]} 38... Rxe3 {[%clk 0:00:37.2]} 0-1

[Event "Early-Titled-Tuesday-Blitz-February-13-2024"]
[Site "Chess.com"]
[Date "2024.02.13"]
[Round "11"]
[White "Grossboss19"]
[Black "Schattman"]
[Result "1-0"]
[WhiteElo "2618"]
[BlackElo "2420"]
[TimeControl "180+1"]
[EndTime "10:09:13 PST"]
[Termination "Grossboss19 won on time"]

1. d4 {[%clk 0:03:00.9]} 1... d5 {[%clk 0:02:58.7]} 2. c4 {[%clk 0:03:01.8]}
2... e6 {[%clk 0:02:58.8]} 3. Nc3 {[%clk 0:03:01.6]} 3... Bb4 {[%clk 0:02:55.5]}
4. Bd2 {[%clk 0:02:53.5]} 4... Nf6 {[%clk 0:02:52.1]} 5. e3 {[%clk 0:02:51.4]}
5... O-O {[%clk 0:02:50.5]} 6. a3 {[%clk 0:02:37.3]} 6... Be7 {[%clk 0:02:49.4]}
7. Nf3 {[%clk 0:02:34.8]} 7... b6 {[%clk 0:02:49.6]} 8. cxd5 {[%clk 0:02:32.3]}
8... exd5 {[%clk 0:02:48.8]} 9. Bd3 {[%clk 0:02:31.5]} 9... Bb7 {[%clk
0:02:48.8]} 10. O-O {[%clk 0:02:31.4]} 10... Nbd7 {[%clk 0:02:48.8]} 11. Re1
{[%clk 0:02:29.3]} 11... Ne4 {[%clk 0:02:46.9]} 12. Qc2 {[%clk 0:02:26.9]} 12...
f5 {[%clk 0:02:41.5]} 13. Rac1 {[%clk 0:02:23.8]} 13... Rc8 {[%clk 0:02:30.6]}
14. Red1 {[%clk 0:02:18.1]} 14... a6 {[%clk 0:02:29]} 15. Qb3 {[%clk 0:02:13.3]}
15... Nxc3 {[%clk 0:02:05.8]} 16. Bxc3 {[%clk 0:02:11.4]} 16... Kh8 {[%clk
0:02:02.9]} 17. Be1 {[%clk 0:01:57.4]} 17... Bd6 {[%clk 0:02:01.8]} 18. g3
{[%clk 0:01:56.2]} 18... Qe7 {[%clk 0:02:01.4]} 19. Qc2 {[%clk 0:01:54.2]} 19...
g6 {[%clk 0:01:57.6]} 20. Qe2 {[%clk 0:01:52.8]} 20... Ra8 {[%clk 0:01:53.9]}
21. Bb4 {[%clk 0:01:44.5]} 21... Bxb4 {[%clk 0:01:49.7]} 22. axb4 {[%clk
0:01:45.4]} 22... Rfc8 {[%clk 0:01:48.9]} 23. Qd2 {[%clk 0:01:41.8]} 23... Kg8
{[%clk 0:01:47.2]} 24. Rc2 {[%clk 0:01:36.4]} 24... Qd6 {[%clk 0:01:41.5]} 25.
Rdc1 {[%clk 0:01:35.8]} 25... a5 {[%clk 0:01:35]} 26. bxa5 {[%clk 0:01:31.2]}
26... Rxa5 {[%clk 0:01:34]} 27. b4 {[%clk 0:01:29.5]} 27... Ra3 {[%clk
0:01:31.8]} 28. Ne1 {[%clk 0:01:23.3]} 28... h5 {[%clk 0:01:29.2]} 29. h4 {[%clk
0:01:21.8]} 29... Ra4 {[%clk 0:01:19.2]} 30. Bb5 {[%clk 0:01:17.6]} 30... Ra3
{[%clk 0:01:13.5]} 31. Bc6 {[%clk 0:01:16.5]} 31... Bxc6 {[%clk 0:00:56.1]} 32.
Rxc6 {[%clk 0:01:17.4]} 32... Qe7 {[%clk 0:00:55.8]} 33. Rxg6+ {[%clk
0:01:15.2]} 33... Kh7 {[%clk 0:00:54.7]} 34. Rgc6 {[%clk 0:01:13.4]} 34... Nf6
{[%clk 0:00:52.9]} 35. Nf3 {[%clk 0:01:09.2]} 35... Ne4 {[%clk 0:00:47.5]} 36.
Qe2 {[%clk 0:01:07.9]} 36... Kg8 {[%clk 0:00:31.1]} 37. Ne5 {[%clk 0:00:58.3]}
37... Qe8 {[%clk 0:00:22.7]} 38. Rg6+ {[%clk 0:00:55.3]} 1-0

[Event "Early-Titled-Tuesday-Blitz-February-13-2024"]
[Site "Chess.com"]
[Date "2024.02.13"]
[Round "11"]
[White "WiktoriaPOL"]
[Black "LileKoridze"]
[Result "0-1"]
[WhiteElo "2278"]
[BlackElo "2420"]
[TimeControl "180+1"]
[EndTime "10:09:15 PST"]
[Termination "LileKoridze won on time"]

1. c4 {[%clk 0:02:56.9]} 1... e5 {[%clk 0:02:59.8]} 2. Nc3 {[%clk 0:02:55.8]}
2... Nf6 {[%clk 0:02:59.7]} 3. Nf3 {[%clk 0:02:55.6]} 3... Nc6 {[%clk
0:02:59.5]} 4. e4 {[%clk 0:02:55.6]} 4... Bb4 {[%clk 0:02:55.5]} 5. d3 {[%clk
0:02:54.4]} 5... O-O {[%clk 0:02:55]} 6. a3 {[%clk 0:02:52.1]} 6... Be7 {[%clk
0:02:52.6]} 7. b4 {[%clk 0:02:49.6]} 7... d6 {[%clk 0:02:51.3]} 8. g3 {[%clk
0:02:47.9]} 8... h6 {[%clk 0:02:49.7]} 9. Bg2 {[%clk 0:02:48.5]} 9... Bg4 {[%clk
0:02:50]} 10. h3 {[%clk 0:02:47.5]} 10... Bh5 {[%clk 0:02:50]} 11. Be3 {[%clk
0:02:44.7]} 11... Nd4 {[%clk 0:02:49.4]} 12. g4 {[%clk 0:02:38.4]} 12... Nxf3+
{[%clk 0:02:48.9]} 13. Qxf3 {[%clk 0:02:38.2]} 13... Bg6 {[%clk 0:02:49.1]} 14.
Qg3 {[%clk 0:02:36.1]} 14... c6 {[%clk 0:02:48.5]} 15. h4 {[%clk 0:02:31.9]}
15... h5 {[%clk 0:02:38]} 16. Bf3 {[%clk 0:02:07.2]} 16... a5 {[%clk 0:02:36.6]}
17. b5 {[%clk 0:02:02.4]} 17... cxb5 {[%clk 0:02:36.4]} 18. Nxb5 {[%clk
0:02:00.8]} 18... Qd7 {[%clk 0:02:33.2]} 19. Rg1 {[%clk 0:01:56.8]} 19... hxg4
{[%clk 0:02:31]} 20. Bxg4 {[%clk 0:01:53.9]} 20... Nxg4 {[%clk 0:02:31.3]} 21.
Qxg4 {[%clk 0:01:53.7]} 21... Qxg4 {[%clk 0:02:31.1]} 22. Rxg4 {[%clk
0:01:54.5]} 22... Kh7 {[%clk 0:02:28.1]} 23. O-O-O {[%clk 0:01:51.4]} 23... f5
{[%clk 0:02:28.1]} 24. Rg2 {[%clk 0:01:37.1]} 24... fxe4 {[%clk 0:02:27.7]} 25.
Rdg1 {[%clk 0:01:34.9]} 25... Bf7 {[%clk 0:02:19.4]} 26. Rxg7+ {[%clk
0:01:33.7]} 26... Kh8 {[%clk 0:02:19.8]} 27. dxe4 {[%clk 0:01:19.4]} 27... Rg8
{[%clk 0:02:13.3]} 28. Bh6 {[%clk 0:00:58.5]} 28... Bxc4 {[%clk 0:02:03.1]} 29.
Nc3 {[%clk 0:00:43]} 29... Rxg7 {[%clk 0:02:00.8]} 30. Rxg7 {[%clk 0:00:41.6]}
30... Bxh4 {[%clk 0:02:00.7]} 31. Rxb7 {[%clk 0:00:40.8]} 31... Bxf2 {[%clk
0:01:59.3]} 32. Rd7 {[%clk 0:00:36.3]} 32... Rc8 {[%clk 0:01:53.5]} 33. Rxd6
{[%clk 0:00:22.6]} 33... Bc5 {[%clk 0:01:48.1]} 34. Rd7 {[%clk 0:00:17.2]} 34...
Bxa3+ {[%clk 0:01:42.9]} 35. Kd2 {[%clk 0:00:17.5]} 35... Bb4 {[%clk 0:01:42.1]}
36. Bg7+ {[%clk 0:00:17.1]} 36... Kg8 {[%clk 0:01:42.2]} 37. Bxe5 {[%clk
0:00:15.8]} 37... a4 {[%clk 0:01:39.5]} 38. Ra7 {[%clk 0:00:14.9]} 38... a3
{[%clk 0:01:39.4]} 39. Ra4 {[%clk 0:00:07.8]} 39... a2 {[%clk 0:01:35.9]} 40.
Kc2 {[%clk 0:00:04.5]} 40... Bb5 {[%clk 0:01:19.8]} 41. Ra7 {[%clk 0:00:02.5]}
41... Bc4 {[%clk 0:01:07.4]} 42. Kb2 {[%clk 0:00:01.8]} 42... Rb8 {[%clk
0:01:05.8]} 0-1

[Event "Early-Titled-Tuesday-Blitz-February-13-2024"]
[Site "Chess.com"]
[Date "2024.02.13"]
[Round "11"]
[White "Payyappat"]
[Black "GrumbleBruno"]
[Result "1-0"]
[WhiteElo "2571"]
[BlackElo "2461"]
[TimeControl "180+1"]
[EndTime "10:09:19 PST"]
[Termination "Payyappat won on time"]

1. e4 {[%clk 0:03:00.9]} 1... e5 {[%clk 0:02:59.4]} 2. Nf3 {[%clk 0:03:00.1]}
2... d5 {[%clk 0:02:59.5]} 3. exd5 {[%clk 0:02:53.4]} 3... e4 {[%clk 0:02:58.9]}
4. Qe2 {[%clk 0:02:53.4]} 4... Nf6 {[%clk 0:02:59.2]} 5. d3 {[%clk 0:02:52.3]}
5... Bb4+ {[%clk 0:02:59.2]} 6. c3 {[%clk 0:02:51]} 6... O-O {[%clk 0:02:59.2]}
7. dxe4 {[%clk 0:02:48.7]} 7... Be7 {[%clk 0:02:59.2]} 8. Qc2 {[%clk 0:02:45.9]}
8... Re8 {[%clk 0:02:58.5]} 9. Be3 {[%clk 0:02:42.7]} 9... c6 {[%clk 0:02:51.3]}
10. Bd3 {[%clk 0:02:38.9]} 10... cxd5 {[%clk 0:02:47.6]} 11. e5 {[%clk
0:02:36.8]} 11... Ng4 {[%clk 0:02:47]} 12. Bxh7+ {[%clk 0:02:30.2]} 12... Kh8
{[%clk 0:02:46.5]} 13. Nbd2 {[%clk 0:02:27.7]} 13... Nxe3 {[%clk 0:02:41]} 14.
fxe3 {[%clk 0:02:28.6]} 14... Bg5 {[%clk 0:02:38.5]} 15. O-O-O {[%clk
0:02:20.5]} 15... Bxe3 {[%clk 0:02:34]} 16. Rde1 {[%clk 0:02:15.4]} 16... Bh6
{[%clk 0:02:32.7]} 17. Bf5 {[%clk 0:02:11.6]} 17... Nc6 {[%clk 0:02:31]} 18. g4
{[%clk 0:02:08.6]} 18... Bf4 {[%clk 0:02:07.5]} 19. Rhf1 {[%clk 0:01:46.3]}
19... Nxe5 {[%clk 0:01:48.3]} 20. Nxe5 {[%clk 0:01:41.9]} 20... Rxe5 {[%clk
0:01:37.6]} 21. Rxe5 {[%clk 0:01:40.8]} 21... Bxe5 {[%clk 0:01:37]} 22. Bxc8
{[%clk 0:01:41.4]} 22... Rxc8 {[%clk 0:01:35]} 23. Rf5 {[%clk 0:01:32.8]} 23...
Bf6 {[%clk 0:00:57.2]} 24. Rh5+ {[%clk 0:01:23.5]} 24... Kg8 {[%clk 0:00:57]}
25. Qh7+ {[%clk 0:01:22.3]} 25... Kf8 {[%clk 0:00:57.3]} 26. g5 {[%clk
0:01:21.3]} 26... Bxc3 {[%clk 0:00:18.9]} 27. bxc3 {[%clk 0:01:20.3]} 27...
Rxc3+ {[%clk 0:00:18.4]} 28. Kd1 {[%clk 0:01:19.6]} 28... Ra3 {[%clk 0:00:14.4]}
29. g6 {[%clk 0:01:15.1]} 29... Qa5 {[%clk 0:00:07.9]} 30. Re5 {[%clk
0:00:43.5]} 30... Qa4+ {[%clk 0:00:06.5]} 31. Ke1 {[%clk 0:00:41.1]} 31... fxg6
{[%clk 0:00:01.2]} 32. Qh8+ {[%clk 0:00:37.7]} 1-0